[Event "POL-chT 2 Liga 2019"]
[Site "Poronin"]
[Date "2019.09.08"]
[Round "2.52"]
[White "Polkowski, Piotr"]
[Black "Kubica, Kamil"]
[Result "1-0"]
[ECO "C50"]
[WhiteElo "2109"]
[BlackElo "2099"]
[Annotator "NA"]
[PlyCount "71"]
[EventDate "2019.09.07"]
[EventType "team-tourn"]
[EventCountry "POL"]
[SourceTitle "playchess.com"]
[Source "ChessBase"]
[SourceQuality "1"]
[TimeControl "40/5400+30:1800+30"]

1. e4 {[%emt 0:00:28]} e5 {[%emt 0:00:00]} 2. Nf3 {[%emt 0:00:12]} Nc6 {[%emt 0:00:01]} 3. Bc4 {[%emt 0:00:15]} Bc5 {[%emt 0:00:37]} 4. d3 {[%emt 0:02:22]} Nf6 {[%emt 0:01:22]} 5. Nc3 {[%emt 0:00:51]} h6 {[%emt 0:04:22]} 6. O-O {[%emt 0:10:38]} d6 {[%emt 0:03:53]} 7. h3 {[%emt 0:00:09]} Na5 {[%emt 0:04:41]} 8. Bb3 {[%emt 0:00:04]} Nxb3 {[%emt 0:01:39]} 9. axb3 {[%emt 0:00:01]} a6 {[%emt 0:02:22]} 10. Be3 {[%emt 0:00:53]} Ba7 {[%emt 0:01:47]} 11. Bxa7 {[%emt 0:01:11]} Rxa7 {[%emt 0:00:08]} 12. d4 {[%emt 0:03:27]} Qe7 {[%emt 0:08:13]} 13. dxe5 {[%emt 0:01:28]} dxe5 {[%emt 0:00:12]} 14. Ra5 {[%emt 0:00:47]} Be6 {[%emt 0:31:36]} 15. Nxe5 {[%emt 0:21:38]} O-O {[%emt 0:01:11]} 16. Nd3 {[%emt 0:00:59]} b6 {[%emt 0:02:22]} 17. Ra1 {[%emt 0:01:20]} c5 {[%emt 0:00:37]} 18. Qf3 {[%emt 0:02:46]} Rd8 {[%emt 0:06:20]} 19. Rfd1 {[%emt 0:01:34]} Bc8 {[%emt 0:16:20]} 20. Nf4 {[%emt 0:09:17]} Rad7 {[%emt 0:03:54]} 21. Rxd7 {[%emt 0:00:49]} Nxd7 {[%emt 0:01:12]} 22. Nfd5 {[%emt 0:03:16]} Qe5 {[%emt 0:04:00]} 23. Rd1 {[%emt 0:03:26]} Re8 {[%emt 0:00:29]} 24. Qf4 {[%emt 0:00:47]} Qxf4 {[%emt 0:01:22]} 25. Nxf4 {[%emt 0:00:06]} Nf6 {[%emt 0:00:07]} 26. f3 {[%emt 0:00:16]} Bb7 {[%emt 0:02:09]} 27. Na4 {[%emt 0:03:17]} g5 {[%emt 0:00:09]} 28. Ne2 {[%emt 0:01:08]} Nxe4 {[%emt 0:02:23]} 29. fxe4 {[%emt 0:00:21]} Bxe4 {[%emt 0:00:05]} 30. Rd2 {[%emt 0:00:30]} Re6 {[%emt 0:00:31]} 31. Nec3 {[%emt 0:04:21]} Bg6 {[%emt 0:00:48]} 32. Nd5 {[%emt 0:00:39]} Re1+ {[%emt 0:00:26]} 33. Kf2 {[%emt 0:00:07]} Rc1 {[%emt 0:00:10]} 34. Ne7+ {[%emt 0:00:09]} Kg7 {[%emt 0:00:43]} 35. Nxg6 {[%emt 0:00:02]} Kxg6 {[%emt 0:00:44]} 36. Nxb6 {[%emt 0:00:05]} 1-0

[Event "POL-chT 2 Liga 2019"]
[Site "Poronin"]
[Date "2019.09.08"]
[Round "2.53"]
[White "Rawski, Slawomir"]
[Black "Grochowski, Kosma"]
[Result "0-1"]
[ECO "A09"]
[WhiteElo "2056"]
[BlackElo "1903"]
[Annotator "NA"]
[PlyCount "99"]
[EventDate "2019.09.07"]
[EventType "team-tourn"]
[EventCountry "POL"]
[SourceTitle "playchess.com"]
[Source "ChessBase"]
[SourceQuality "1"]
[TimeControl "40/5400+30:1800+30"]

1. Nf3 {[%emt 0:00:56]} d5 2. c4 {[%emt 0:00:09]} d4 {[%emt 0:02:51]} 3. e3 {[%emt 0:03:49]} c5 {[%emt 0:00:18]} 4. b4 {[%emt 0:01:12]} dxe3 {[%emt 0:09:17]} 5. fxe3 {[%emt 0:00:26]} cxb4 {[%emt 0:05:59]} 6. Be2 {[%emt 0:05:13]} e6 {[%emt 0:01:14]} 7. O-O {[%emt 0:00:29]} Nf6 {[%emt 0:03:15]} 8. Bb2 {[%emt 0:07:52]} Be7 {[%emt 0:01:34]} 9. Qc2 {[%emt 0:03:25]} Nbd7 {[%emt 0:11:19]} 10. Ng5 {[%emt 0:12:49]} Qa5 {[%emt 0:02:21]} 11. h4 {[%emt 0:06:40]} h6 {[%emt 0:10:22]} 12. Nxe6 {[%emt 0:17:48]} fxe6 {[%emt 0:00:07]} 13. Qg6+ {[%emt 0:00:07]} Kd8 {[%emt 0:00:50]} 14. Qxg7 {[%emt 0:00:15]} Rf8 {[%emt 0:21:33]} 15. Qxh6 {[%emt 0:01:28]} Qc7 {[%emt 0:00:39]} 16. a3 {[%emt 0:10:29]} Qg3 {[%emt 0:06:08]} 17. Qf4 {[%emt 0:11:05]} Nh5 {[%emt 0:07:11]} 18. Qxg3 {[%emt 0:02:44]} Rxf1+ {[%emt 0:00:15]} 19. Bxf1 {[%emt 0:00:22]} Nxg3 {[%emt 0:00:02]} 20. axb4 {[%emt 0:01:25]} Bxb4 {[%emt 0:05:26]} 21. Kf2 {[%emt 0:06:26]} Nxf1 {[%emt 0:00:39]} 22. Kxf1 {[%emt 0:00:06]} Be7 {[%emt 0:02:52]} 23. g3 {[%emt 0:00:26]} Nf6 {[%emt 0:02:13]} 24. d3 {[%emt 0:02:46]} Bd7 {[%emt 0:00:32]} 25. Nd2 {[%emt 0:00:34]} Bc6 {[%emt 0:02:28]} 26. e4 {[%emt 0:00:35]} Kd7 {[%emt 0:00:18]} 27. Nf3 {[%emt 0:00:24]} Ng4 {[%emt 0:00:26]} 28. Ke2 {[%emt 0:00:46]} a5 {[%emt 0:00:35]} 29. Nd4 {[%emt 0:01:18]} Rf8 {[%emt 0:02:22]} 30. Nxc6 {[%emt 0:01:01]} Rf2+ {[%emt 0:00:24]} 31. Ke1 {[%emt 0:00:48]} Kxc6 {[%emt 0:00:06]} 32. Bc3 {[%emt 0:01:13]} b6 {[%emt 0:01:26]} 33. d4 {[%emt 0:00:15]} Rf3 {[%emt 0:00:31]} 34. d5+ {[%emt 0:00:47]} exd5 {[%emt 0:00:28]} 35. cxd5+ {[%emt 0:00:23]} Kd7 {[%emt 0:00:39]} 36. Rc1 {[%emt 0:00:51]} Rxg3 {[%emt 0:00:29]} 37. Bd4 {[%emt 0:00:16]} Bb4+ {[%emt 0:00:20]} 38. Ke2 {[%emt 0:00:17]} Bc5 {[%emt 0:00:55]} 39. Bxc5 {[%emt 0:00:24]} bxc5 {[%emt 0:00:02]} 40. Rxc5 {[%emt 0:00:00]} Re3+ {[%emt 0:00:00]} 41. Kd2 {[%emt 0:00:33]} a4 {[%emt 0:12:44]} 42. Rc4 {[%emt 0:01:20]} a3 {[%emt 0:00:53]} 43. Ra4 {[%emt 0:02:59]} Rh3 {[%emt 0:04:41]} 44. Kc2 {[%emt 0:07:03]} Ne3+ {[%emt 0:08:06]} 45. Kb1 {[%emt 0:07:47]} Nd1 {[%emt 0:01:50]} 46. Kc2 {[%emt 0:02:29]} Ne3+ {[%emt 0:01:37]} 47. Kb1 {[%emt 0:00:06]} Nd1 {[%emt 0:00:03]} 48. Kc2 {[%emt 0:00:39]} Nb2 {[%emt 0:00:03]} 49. Ra6 Nc4 50. Ra4 0-1

[Event "POL-chT 2 Liga 2019"]
[Site "Poronin"]
[Date "2019.09.08"]
[Round "2.54"]
[White "Fraczek, Weronika"]
[Black "Dziodzio, Angelika"]
[Result "0-1"]
[ECO "B07"]
[WhiteElo "1875"]
[BlackElo "2117"]
[Annotator "NA"]
[PlyCount "106"]
[EventDate "2019.09.07"]
[EventType "team-tourn"]
[EventCountry "POL"]
[SourceTitle "playchess.com"]
[Source "ChessBase"]
[SourceQuality "1"]
[TimeControl "40/5400+30:1800+30"]

1. e4 {[%emt 0:00:00]} d6 {[%emt 0:00:00]} 2. d4 {[%emt 0:00:00]} Nf6 {[%emt 0:00:00]} 3. Nc3 {[%emt 0:00:00]} Nbd7 {[%emt 0:00:00]} 4. Be3 {[%emt 0:01:52]} e5 {[%emt 0:01:15]} 5. dxe5 {[%emt 0:03:26]} dxe5 {[%emt 0:05:38]} 6. Bc4 {[%emt 0:02:45]} Bb4 {[%emt 0:00:43]} 7. Nge2 {[%emt 0:04:22]} O-O {[%emt 0:02:34]} 8. a3 {[%emt 0:04:15]} Bxc3+ {[%emt 0:01:25]} 9. Nxc3 {[%emt 0:00:53]} c6 {[%emt 0:00:23]} 10. f3 {[%emt 0:02:51]} Qe7 {[%emt 0:02:27]} 11. O-O {[%emt 0:01:42]} b5 {[%emt 0:07:13]} 12. Be2 {[%emt 0:06:20]} Rd8 {[%emt 0:06:16]} 13. Qe1 {[%emt 0:01:56]} Nf8 {[%emt 0:05:15]} 14. Qf2 {[%emt 0:04:17]} Be6 {[%emt 0:07:42]} 15. a4 {[%emt 0:04:43]} b4 {[%emt 0:02:30]} 16. Na2 {[%emt 0:03:29]} Bxa2 {[%emt 0:05:10]} 17. Rxa2 {[%emt 0:00:13]} Ne6 {[%emt 0:00:07]} 18. g3 {[%emt 0:03:50]} c5 {[%emt 0:06:22]} 19. a5 {[%emt 0:08:17]} Qc7 {[%emt 0:02:57]} 20. Bc4 {[%emt 0:01:02]} Nd4 {[%emt 0:01:47]} 21. c3 {[%emt 0:02:49]} Nc6 {[%emt 0:01:32]} 22. Rfa1 {[%emt 0:02:21]} Rd7 {[%emt 0:06:45]} 23. Bxc5 {[%emt 0:03:52]} Rad8 {[%emt 0:00:07]} 24. Be2 {[%emt 0:02:31]} Rd2 {[%emt 0:04:43]} 25. Bxb4 {[%emt 0:11:09]} Nxb4 {[%emt 0:04:24]} 26. cxb4 {[%emt 0:00:06]} R8d4 {[%emt 0:00:08]} 27. b5 {[%emt 0:08:12]} h6 {[%emt 0:03:06]} 28. Qe1 {[%emt 0:03:33]} Qc5 {[%emt 0:01:49]} 29. Kf1 {[%emt 0:00:46]} g5 {[%emt 0:04:33]} 30. g4 {[%emt 0:08:56]} h5 {[%emt 0:01:22]} 31. Rc1 {[%emt 0:00:50]} Qb4 {[%emt 0:00:26]} 32. h3 {[%emt 0:00:57]} hxg4 {[%emt 0:03:51]} 33. hxg4 {[%emt 0:02:38]} Nxe4 {[%emt 0:00:34]} 34. Ra3 {[%emt 0:01:27]} Qxb2 35. Rc8+ {[%emt 0:00:21]} Kg7 {[%emt 0:02:28]} 36. Re3 {[%emt 0:00:44]} Nd6 {[%emt 0:03:51]} 37. Rc5 {[%emt 0:00:28]} Ra4 {[%emt 0:01:43]} 38. Rc1 {[%emt 0:00:29]} Qd4 {[%emt 0:00:53]} 39. Rec3 {[%emt 0:00:33]} Raa2 {[%emt 0:00:57]} 40. Rd3 {[%emt 0:00:00]} Rxd3 {[%emt 0:00:00]} 41. Bxd3 {[%emt 0:02:12]} Qxd3+ {[%emt 0:00:30]} 42. Kg1 {[%emt 0:00:17]} Re2 {[%emt 0:00:10]} 43. Qc3 {[%emt 0:01:40]} Qxc3 {[%emt 0:01:30]} 44. Rxc3 {[%emt 0:00:05]} Nxb5 {[%emt 0:00:07]} 45. Rc5 {[%emt 0:01:57]} Nd4 {[%emt 0:00:26]} 46. Kf1 {[%emt 0:00:34]} Re3 {[%emt 0:00:32]} 47. Rc7 {[%emt 0:00:38]} Rxf3+ {[%emt 0:00:13]} 48. Ke1 {[%emt 0:00:24]} Ra3 {[%emt 0:00:57]} 49. Rxa7 {[%emt 0:00:46]} e4 {[%emt 0:00:39]} 50. Rd7 {[%emt 0:00:55]} Ne6 {[%emt 0:00:14]} 51. Rd5 {[%emt 0:00:30]} e3 {[%emt 0:00:09]} 52. Re5 {[%emt 0:00:27]} Kf6 {[%emt 0:00:19]} 53. Re4 {[%emt 0:00:34]} Nf4 {[%emt 0:00:13]} 0-1

[Event "POL-chT 2 Liga 2019"]
[Site "Poronin"]
[Date "2019.09.09"]
[Round "3.7"]
[White "Molenda, Marcin"]
[Black "Kozak, Antoni"]
[Result "0-1"]
[ECO "A04"]
[WhiteElo "2373"]
[BlackElo "2341"]
[Annotator "RC"]
[PlyCount "60"]
[EventDate "2019.09.07"]
[EventType "team-tourn"]
[EventCountry "POL"]
[SourceTitle "playchess.com"]
[Source "ChessBase"]
[SourceQuality "1"]
[TimeControl "40/5400+30:1800+30"]

1. Nf3 {[%emt 0:00:00]} c5 {[%emt 0:02:13]} 2. g3 {[%emt 0:00:00]} Nc6 {[%emt 0:00:49]} 3. Bg2 {[%emt 0:00:08]} Nf6 {[%emt 0:01:57]} 4. O-O {[%emt 0:00:45]} e5 {[%emt 0:00:03]} 5. e4 {[%emt 0:01:59]} Be7 {[%emt 0:00:18]} 6. d3 {[%emt 0:01:03]} O-O {[%emt 0:00:09]} 7. c3 {[%emt 0:02:47]} d6 {[%emt 0:02:07]} 8. Nbd2 {[%emt 0:01:31]} Re8 {[%emt 0:09:04]} 9. Re1 {[%emt 0:08:48]} Bf8 {[%emt 0:01:37]} 10. Nc4 {[%emt 0:02:18]} b5 {[%emt 0:03:02]} 11. Ne3 {[%emt 0:00:42]} Rb8 {[%emt 0:00:04]} 12. a3 {[%emt 0:06:56]} h6 {[%emt 0:08:46]} 13. Qc2 {[%emt 0:15:39]} Be6 {[%emt 0:05:23]} 14. b4 {[%emt 0:05:39]} g6 {[%emt 0:08:24]} 15. Bb2 {[%emt 0:01:42]} Rc8 {[%emt 0:02:29]} 16. Qb1 {[%emt 0:03:59]} d5 {[%emt 0:12:33]} 17. exd5 {[%emt 0:08:39]} Nxd5 {[%emt 0:00:12]} 18. Nf1 {[%emt 0:00:36]} Bf5 {[%emt 0:04:14]} 19. Nh4 {[%emt 0:01:26]} Be6 {[%emt 0:00:15]} 20. Nf3 {[%emt 0:07:44]} Qc7 {[%emt 0:05:48]} 21. c4 {[%emt 0:04:19]} bxc4 {[%emt 0:00:08]} 22. dxc4 {[%emt 0:00:04]} Nb6 {[%emt 0:03:35]} 23. Nxe5 {[%emt 0:02:05]} Bf5 {[%emt 0:00:21]} 24. Bxc6 {[%emt 0:16:31]} Bd3 25. Qc2 Bxc2 {[%emt 0:00:40]} 26. Bxe8 {[%emt 0:00:32]} Bb1 {[%emt 0:06:42]} 27. Raxb1 {[%emt 0:04:38]} Rxe8 {[%emt 0:01:09]} 28. bxc5 {[%emt 0:02:23]} Bg7 {[%emt 0:00:28]} 29. Ba1 {[%emt 0:01:06]} Na4 {[%emt 0:01:05]} 30. Rb3 {[%emt 0:01:01]} Bxe5 {[%emt 0:00:30]} 0-1

[Event "POL-chT 2 Liga 2019"]
[Site "Poronin"]
[Date "2019.09.09"]
[Round "3.11"]
[White "Koloczek, Maciej"]
[Black "Sowinski, Pawel"]
[Result "0-1"]
[ECO "B41"]
[WhiteElo "1932"]
[BlackElo "1606"]
[Annotator "NA RC"]
[PlyCount "82"]
[EventDate "2019.09.07"]
[EventType "team-tourn"]
[EventCountry "POL"]
[SourceTitle "playchess.com"]
[Source "ChessBase"]
[SourceQuality "1"]
[TimeControl "40/5400+30:1800+30"]

1. e4 {[%emt 0:00:00]} c5 {[%emt 0:00:12]} 2. Nf3 {[%emt 0:00:00]} e6 {[%emt 0:00:44]} 3. d4 {[%emt 0:00:40]} cxd4 {[%emt 0:00:20]} 4. Nxd4 {[%emt 0:00:14]} a6 {[%emt 0:00:14]} 5. c4 {[%emt 0:01:03]} Nf6 {[%emt 0:00:20]} 6. Nc3 {[%emt 0:00:30]} Bb4 {[%emt 0:00:43]} 7. Qd3 {[%emt 0:01:32]} Nc6 {[%emt 0:03:24]} 8. Nc2 {[%emt 0:15:22]} d5 {[%emt 0:22:43]} 9. exd5 {[%emt 0:14:38]} exd5 {[%emt 0:01:40]} 10. cxd5 {[%emt 0:04:39]} Nxd5 {[%emt 0:01:12]} 11. Qe4+ {[%emt 0:03:38]} Qe7 {[%emt 0:03:26]} 12. Qxe7+ {[%emt 0:01:41]} Kxe7 {[%emt 0:00:27]} 13. Bd2 {[%emt 0:00:29]} Nxc3 {[%emt 0:02:10]} 14. bxc3 {[%emt 0:00:32]} Bc5 {[%emt 0:01:10]} 15. Be2 {[%emt 0:03:24]} Be6 {[%emt 0:03:19]} 16. O-O {[%emt 0:02:55]} Rhd8 {[%emt 0:07:04]} 17. Bf4 {[%emt 0:03:26]} Bd6 {[%emt 0:05:49]} 18. Be3 {[%emt 0:03:46]} Be5 {[%emt 0:02:29]} 19. Rab1 {[%emt 0:05:23]} Rd7 {[%emt 0:14:55]} 20. c4 {[%emt 0:13:18]} Rc8 {[%emt 0:04:02]} 21. Nb4 {[%emt 0:03:47]} Nd4 {[%emt 0:01:34]} 22. Bxd4 {[%emt 0:01:15]} Bxd4 {[%emt 0:02:50]} 23. Nd5+ {[%emt 0:00:43]} Bxd5 {[%emt 0:01:54]} 24. cxd5 {[%emt 0:00:10]} Rc2 {[%emt 0:00:59]} 25. Bg4 {[%emt 0:01:26]} Rdc7 {[%emt 0:02:11]} 26. Rbd1 {[%emt 0:01:13]} R7c4 {[%emt 0:01:54]} 27. Rfe1+ {[%emt 0:06:30]} Kd6 {[%emt 0:02:43]} 28. Re2 {[%emt 0:00:24]} Rxe2 {[%emt 0:06:52]} 29. Bxe2 {[%emt 0:00:06]} Rc2 {[%emt 0:00:10]} 30. Kf1 {[%emt 0:00:22]} Kxd5 {[%emt 0:01:04]} 31. a4 {[%emt 0:01:03]} b5 {[%emt 0:02:03]} 32. axb5 {[%emt 0:00:19]} axb5 {[%emt 0:00:08]} 33. Rb1 {[%emt 0:01:19]} b4 {[%emt 0:00:12]} 34. g3 {[%emt 0:00:44]} Kc5 {[%emt 0:01:24]} 35. h3 {[%emt 0:00:49]} Rb2 {[%emt 0:01:38]} 36. Rxb2 {[%emt 0:01:05]} Bxb2 {[%emt 0:00:09]} 37. Ke1 {[%emt 0:00:51]} Kd4 {[%emt 0:00:48]} 38. Kd2 {[%emt 0:00:47]} Bc3+ {[%emt 0:00:37]} 39. Kc2 {[%emt 0:00:27]} Be1 {[%emt 0:00:10]} 40. g4 {[%emt 0:00:00]} Bxf2 {[%emt 0:00:00]} 41. Kb3 {[%emt 0:02:46]} Be1 {[%emt 0:00:41]} 0-1

[Event "POL-chT 2 Liga 2019"]
[Site "Poronin"]
[Date "2019.09.09"]
[Round "3.12"]
[White "Swiech, Joanna"]
[Black "Adamczyk, Zuzanna"]
[Result "1-0"]
[ECO "E00"]
[WhiteElo "2055"]
[BlackElo "1938"]
[Annotator "NA RC"]
[PlyCount "91"]
[EventDate "2019.09.07"]
[EventType "team-tourn"]
[EventCountry "POL"]
[SourceTitle "playchess.com"]
[Source "ChessBase"]
[SourceQuality "1"]
[TimeControl "40/5400+30:1800+30"]

1. d4 {[%emt 0:00:00]} Nf6 {[%emt 0:00:00]} 2. c4 {[%emt 0:00:00]} e6 {[%emt 0:00:00]} 3. a3 {[%emt 0:00:00]} b6 {[%emt 0:00:26]} 4. Nc3 {[%emt 0:00:00]} Bb7 {[%emt 0:00:32]} 5. d5 {[%emt 0:00:16]} e5 {[%emt 0:07:47]} 6. e4 {[%emt 0:00:40]} d6 {[%emt 0:00:52]} 7. Bd3 {[%emt 0:01:18]} Nbd7 {[%emt 0:04:26]} 8. Nf3 {[%emt 0:03:25]} g6 {[%emt 0:02:37]} 9. h3 {[%emt 0:02:28]} Bg7 {[%emt 0:01:28]} 10. Bg5 {[%emt 0:00:58]} h6 {[%emt 0:01:39]} 11. Be3 {[%emt 0:00:35]} Nh5 {[%emt 0:05:29]} 12. Qd2 {[%emt 0:10:08]} g5 {[%emt 0:26:43]} 13. g3 {[%emt 0:04:03]} a5 {[%emt 0:06:30]} 14. O-O {[%emt 0:08:33]} O-O {[%emt 0:03:13]} 15. Qe2 {[%emt 0:05:02]} Ndf6 {[%emt 0:08:31]} 16. h4 {[%emt 0:03:51]} g4 {[%emt 0:03:45]} 17. Ne1 {[%emt 0:03:31]} Bc8 {[%emt 0:02:05]} 18. Ng2 {[%emt 0:01:53]} Ne8 {[%emt 0:06:34]} 19. Bd2 {[%emt 0:02:25]} Kh7 {[%emt 0:05:21]} 20. Ne3 {[%emt 0:02:02]} Rg8 {[%emt 0:01:55]} 21. Nf5 {[%emt 0:03:53]} Bf8 {[%emt 0:01:15]} 22. Nd1 {[%emt 0:04:32]} Bxf5 {[%emt 0:04:05]} 23. exf5 {[%emt 0:00:07]} Nef6 {[%emt 0:01:17]} 24. Qe3 {[%emt 0:08:18]} Qd7 {[%emt 0:02:13]} 25. Nc3 {[%emt 0:01:05]} Kh8 {[%emt 0:01:32]} 26. b4 {[%emt 0:01:39]} axb4 {[%emt 0:01:11]} 27. axb4 {[%emt 0:00:06]} Re8 {[%emt 0:00:32]} 28. c5 {[%emt 0:07:23]} dxc5 {[%emt 0:01:02]} 29. Bb5 {[%emt 0:00:14]} Qxf5 {[%emt 0:00:08]} 30. Bxe8 {[%emt 0:00:20]} Nxe8 {[%emt 0:00:24]} 31. bxc5 {[%emt 0:00:15]} bxc5 {[%emt 0:00:22]} 32. Rfe1 {[%emt 0:01:41]} f6 {[%emt 0:00:34]} 33. Ra7 {[%emt 0:02:50]} Qd7 {[%emt 0:00:56]} 34. Rb1 {[%emt 0:06:09]} Nd6 {[%emt 0:00:24]} 35. Rb8 {[%emt 0:02:44]} Nc4 {[%emt 0:00:35]} 36. Qd3 {[%emt 0:00:31]} Nxd2 {[%emt 0:00:17]} 37. Qxd2 {[%emt 0:00:07]} Nf4 {[%emt 0:00:42]} 38. Raa8 {[%emt 0:03:46]} Qg7 {[%emt 0:00:56]} 39. Ne4 {[%emt 0:04:06]} Nh3+ {[%emt 0:00:23]} 40. Kh2 {[%emt 0:00:00]} f5 {[%emt 0:00:00]} 41. Nxc5 {[%emt 0:00:58]} Nf4 {[%emt 0:07:07]} 42. Ne6 {[%emt 0:03:17]} Nxe6 {[%emt 0:01:10]} 43. dxe6 {[%emt 0:00:06]} f4 {[%emt 0:00:28]} 44. Re8 {[%emt 0:04:10]} fxg3+ {[%emt 0:08:08]} 45. fxg3 {[%emt 0:00:05]} Qf6 {[%emt 0:00:24]} 46. e7 {[%emt 0:00:37]} 1-0

[Event "POL-chT 2 Liga 2019"]
[Site "Poronin"]
[Date "2019.09.09"]
[Round "3.18"]
[White "Suchanek, Paulina"]
[Black "Lukasiewicz, Anna"]
[Result "1/2-1/2"]
[ECO "D58"]
[WhiteElo "1574"]
[BlackElo "2075"]
[Annotator "NA RC"]
[PlyCount "87"]
[EventDate "2019.09.07"]
[EventType "team-tourn"]
[EventCountry "POL"]
[SourceTitle "playchess.com"]
[Source "ChessBase"]
[SourceQuality "1"]
[TimeControl "40/5400+30:1800+30"]

1. d4 {[%emt 0:00:00]} d5 {[%emt 0:00:00]} 2. c4 {[%emt 0:00:00]} e6 {[%emt 0:00:15]} 3. Nc3 {[%emt 0:00:16]} Be7 {[%emt 0:00:52]} 4. Nf3 {[%emt 0:01:00]} Nf6 {[%emt 0:00:18]} 5. Bg5 {[%emt 0:01:20]} h6 {[%emt 0:02:43]} 6. Bh4 {[%emt 0:01:01]} O-O {[%emt 0:00:57]} 7. e3 {[%emt 0:01:58]} b6 {[%emt 0:00:33]} 8. Bd3 {[%emt 0:02:21]} dxc4 {[%emt 0:04:24]} 9. Bxc4 {[%emt 0:00:29]} Bb7 {[%emt 0:00:19]} 10. O-O {[%emt 0:03:56]} Nbd7 {[%emt 0:01:42]} 11. Qe2 {[%emt 0:12:06]} Ne4 {[%emt 0:03:57]} 12. Bxe7 {[%emt 0:04:27]} Qxe7 {[%emt 0:00:22]} 13. Nxe4 {[%emt 0:03:53]} Bxe4 {[%emt 0:00:06]} 14. Nd2 {[%emt 0:00:32]} Bb7 {[%emt 0:01:00]} 15. Rac1 {[%emt 0:09:16]} c5 {[%emt 0:05:20]} 16. Nb3 {[%emt 0:09:59]} cxd4 {[%emt 0:04:18]} 17. Nxd4 {[%emt 0:03:03]} Nc5 {[%emt 0:06:19]} 18. Rfd1 {[%emt 0:12:13]} a6 {[%emt 0:05:21]} 19. Nb3 {[%emt 0:05:41]} Ne4 {[%emt 0:13:26]} 20. f3 {[%emt 0:01:07]} Nd6 {[%emt 0:02:33]} 21. Bd3 {[%emt 0:03:51]} e5 {[%emt 0:05:06]} 22. Bb1 {[%emt 0:02:02]} e4 {[%emt 0:04:42]} 23. f4 {[%emt 0:00:12]} Rac8 {[%emt 0:02:18]} 24. Nd4 {[%emt 0:02:47]} b5 {[%emt 0:03:15]} 25. b3 {[%emt 0:00:34]} Rc7 {[%emt 0:04:59]} 26. Qd2 {[%emt 0:03:16]} Rfc8 {[%emt 0:02:56]} 27. g3 {[%emt 0:03:24]} Rxc1 {[%emt 0:10:18]} 28. Rxc1 {[%emt 0:00:07]} Qd8 {[%emt 0:02:28]} 29. Rxc8 {[%emt 0:01:29]} Qxc8 {[%emt 0:00:11]} 30. Qc2 {[%emt 0:03:26]} Qd8 {[%emt 0:02:59]} 31. Kf2 {[%emt 0:02:33]} Qb6 {[%emt 0:00:25]} 32. Qd2 {[%emt 0:01:06]} b4 {[%emt 0:00:56]} 33. Bc2 {[%emt 0:01:17]} a5 {[%emt 0:03:06]} 34. Bd1 {[%emt 0:01:17]} Ne8 {[%emt 0:04:04]} 35. h3 {[%emt 0:02:11]} Nf6 {[%emt 0:00:31]} 36. Be2 {[%emt 0:01:36]} Nd5 {[%emt 0:00:25]} 37. Bc4 {[%emt 0:00:22]} Nc3 {[%emt 0:00:13]} 38. Ne2 {[%emt 0:01:17]} Nxe2 {[%emt 0:01:23]} 39. Bxe2 {[%emt 0:00:14]} Bc8 {[%emt 0:01:30]} 40. g4 {[%emt 0:00:00]} Qc7 {[%emt 0:00:00]} 41. Qd5 {[%emt 0:16:27]} Bb7 {[%emt 0:03:39]} 42. Qc4 {[%emt 0:03:31]} Qe7 {[%emt 0:01:41]} 43. Qb5 {[%emt 0:02:59]} g6 {[%emt 0:17:05]} 44. Qxa5 {[%emt 0:01:05]} 1/2-1/2

[Event "POL-chT 2 Liga 2019"]
[Site "Poronin"]
[Date "2019.09.09"]
[Round "3.24"]
[White "Starosta, Martyna"]
[Black "Fraczek, Weronika"]
[Result "1-0"]
[ECO "C70"]
[WhiteElo "1814"]
[BlackElo "1875"]
[Annotator "NA RC"]
[PlyCount "115"]
[EventDate "2019.09.07"]
[EventType "team-tourn"]
[EventCountry "POL"]
[SourceTitle "playchess.com"]
[Source "ChessBase"]
[SourceQuality "1"]
[TimeControl "40/5400+30:1800+30"]

1. e4 {[%emt 0:00:00]} e5 {[%emt 0:00:00]} 2. Nf3 {[%emt 0:00:00]} Nc6 {[%emt 0:00:00]} 3. Bb5 {[%emt 0:00:00]} a6 {[%emt 0:00:00]} 4. Ba4 {[%emt 0:00:00]} g6 {[%emt 0:00:00]} 5. d4 {[%emt 0:00:19]} exd4 {[%emt 0:00:00]} 6. Bg5 {[%emt 0:00:56]} Be7 {[%emt 0:00:11]} 7. Bxe7 {[%emt 0:01:12]} Ngxe7 {[%emt 0:00:13]} 8. O-O {[%emt 0:01:22]} O-O {[%emt 0:00:57]} 9. Nxd4 {[%emt 0:00:45]} b5 {[%emt 0:00:46]} 10. Nxc6 {[%emt 0:04:47]} Nxc6 {[%emt 0:01:01]} 11. Bb3 {[%emt 0:00:14]} Na5 {[%emt 0:06:38]} 12. Nc3 {[%emt 0:03:42]} Bb7 {[%emt 0:03:39]} 13. f4 {[%emt 0:03:47]} Nxb3 {[%emt 0:01:34]} 14. axb3 {[%emt 0:00:39]} f5 {[%emt 0:16:10]} 15. e5 {[%emt 0:02:48]} Qe7 {[%emt 0:02:45]} 16. Qd4 {[%emt 0:03:10]} c5 {[%emt 0:10:55]} 17. Qd2 {[%emt 0:03:15]} Qe6 {[%emt 0:08:05]} 18. Rad1 {[%emt 0:02:19]} Rad8 {[%emt 0:10:00]} 19. Qf2 {[%emt 0:04:10]} d6 {[%emt 0:08:13]} 20. exd6 {[%emt 0:02:56]} Rxd6 {[%emt 0:00:44]} 21. Qxc5 {[%emt 0:02:49]} Rxd1 {[%emt 0:05:08]} 22. Rxd1 {[%emt 0:00:23]} Re8 {[%emt 0:02:55]} 23. h3 {[%emt 0:04:27]} Rc8 {[%emt 0:03:24]} 24. Qd4 {[%emt 0:02:13]} Qc6 {[%emt 0:02:27]} 25. Rd2 {[%emt 0:01:35]} a5 {[%emt 0:03:24]} 26. Qe5 {[%emt 0:06:47]} Qe8 {[%emt 0:11:10]} 27. Qxe8+ {[%emt 0:04:28]} Rxe8 {[%emt 0:00:01]} 28. Nxb5 {[%emt 0:00:27]} Bc6 {[%emt 0:00:36]} 29. Nd4 {[%emt 0:00:37]} Ba8 {[%emt 0:01:09]} 30. Kf2 {[%emt 0:02:42]} Kf7 {[%emt 0:00:30]} 31. Nb5 {[%emt 0:00:49]} Re7 {[%emt 0:00:56]} 32. Nd6+ {[%emt 0:01:53]} Ke6 {[%emt 0:00:23]} 33. Nc4 {[%emt 0:00:35]} Ra7 {[%emt 0:00:35]} 34. Rd6+ {[%emt 0:01:06]} Ke7 {[%emt 0:00:16]} 35. Rb6 {[%emt 0:01:17]} a4 {[%emt 0:01:41]} 36. Ne5 {[%emt 0:05:21]} axb3 {[%emt 0:00:42]} 37. Rxb3 {[%emt 0:00:08]} Be4 {[%emt 0:00:27]} 38. c4 {[%emt 0:01:16]} Kd6 {[%emt 0:00:18]} 39. Rb5 {[%emt 0:01:43]} Ra2 {[%emt 0:01:01]} 40. c5+ {[%emt 0:00:00]} Kc7 {[%emt 0:00:00]} 41. Kg3 {[%emt 0:05:23]} Bb7 {[%emt 0:05:38]} 42. c6 {[%emt 0:01:32]} Bc8 {[%emt 0:00:35]} 43. h4 {[%emt 0:02:21]} Ra1 {[%emt 0:03:17]} 44. Kh2 {[%emt 0:03:52]} Re1 {[%emt 0:01:26]} 45. Ra5 {[%emt 0:01:26]} Re4 {[%emt 0:00:43]} 46. Ra7+ {[%emt 0:02:06]} Kd6 {[%emt 0:01:11]} 47. Rxh7 {[%emt 0:01:26]} Rxf4 {[%emt 0:00:30]} 48. Nxg6 {[%emt 0:00:10]} Rb4 {[%emt 0:00:57]} 49. c7 {[%emt 0:01:21]} Rxb2 {[%emt 0:00:48]} 50. Ne7 {[%emt 0:01:18]} Kxc7 {[%emt 0:00:05]} 51. Nxc8+ {[%emt 0:00:05]} Kxc8 {[%emt 0:00:03]} 52. Rf7 {[%emt 0:00:18]} Rb4 {[%emt 0:00:47]} 53. Kh3 {[%emt 0:00:30]} Rb5 {[%emt 0:02:23]} 54. h5 {[%emt 0:00:32]} Kd8 {[%emt 0:00:28]} 55. h6 {[%emt 0:00:32]} Rb6 {[%emt 0:00:57]} 56. h7 {[%emt 0:00:24]} Rh6+ {[%emt 0:00:04]} 57. Kg3 {[%emt 0:00:05]} Ke8 {[%emt 0:00:19]} 58. Rg7 {[%emt 0:00:06]} 1-0